Cogmind - Beta 17 @@@ ROGUE MODE // 2026.06.26 @ 23:55:05 Player: Bikerider58 Result: Self-destructed Performance ------------- Evolutions (5) 2500 Regions Visited (12) 2400 Robots Destroyed (131) 655 Value Destroyed (4509) 4509 Prototype IDs (28) 560 Alien Tech Used (0) 0 Bonus (10662) 10662 TOTAL SCORE: 21286 Bonus ------- High Alert Combat Kills 136 Follower Combat Kills 1970 Prayed to X0-1V1 5000 Major X0-1V1 Interference 2600 Built Enhanced Grunts 300 A7 Reached Mainframe 300 Met R17 at Cetus 500 Friendly Fire -144 Cogmind --------- Core Integrity 1187/1210 Matter 300/300 Energy 814/823 System Corruption 0% Temperature Cool (7) Movement Treading (47) Location -5/Factory Parts ------- > --- POWER (2) -------- Enhanced Nuclear Core Particle-Quantum Reactor > --- PROPULSION (5) --- Treaded Centrium-Gravjet Exoskeleton > --- UTILITY (7) ------ Armored Scrap Engine Improved Cooling System High-capacity Storage Unit Transmission Jammer Centrium Medium Armor Plating X0-1V1's Piety Tracker > --- WEAPON (3) ------- Hpw. Laser Penetrator Construct/G Hvy. Energy Phase Construct/C > --- INVENTORY (20) --- Light Antimatter Reactor Medium Treads Centrium Heavy Treads Makeshift Microdissipator Network Improved Matter Compressor (300) Centrium Medium Armor Plating Centrium Heavy Armor Plating Experimental Focal Shield Experimental Thermal Shield Advanced Hacking Suite Authchip [R/NC] Improved Trap Extractor (0/6) Advanced KE Penetrator Advanced KE Penetrator Rocket Launcher Plasma Cutter Heavy Pick Peak State ------------ > --- POWER ------------ Light Antimatter Reactor Particle-Quantum Reactor > --- PROPULSION ------- Treaded Centrium-Gravjet Exoskeleton > --- UTILITY ---------- Armored Scrap Engine Improved Cooling System Experimental Cooling System High-capacity Storage Unit Centrium Medium Armor Plating X0-1V1's Piety Tracker > --- WEAPON ----------- Hpw. Laser Penetrator Construct/G Hvy. Energy Phase Construct/C > --- INVENTORY -------- Centrium Heavy Treads Makeshift Microdissipator Network Improved Matter Compressor Transmission Jammer Centrium Medium Armor Plating Centrium Heavy Armor Plating Experimental Focal Shield Advanced Hacking Suite Authchip [R/NC] Improved Trap Extractor Advanced KE Penetrator Advanced KE Penetrator Rocket Launcher Rocket Launcher Plasma Cutter Heavy Pick [Rating: 135] Favorites ----------- Power Constructs Engine Heavy Ion Engine Power Core Enhanced Nuclear Core Reactor Constructs Propulsion Light Treads Treads Light Treads Leg Tripod Weapons Platform Wheel Wheel Flight Unit Improved VTOL Module Utility High-capacity Storage Unit Device X0-1V1's Piety Tracker Storage High-capacity Storage Unit Processor Improved Signal Interpreter Protection Improved Medium Armor Plating Weapon Enhanced Autogun Energy Gun Improved Medium Laser Energy Cannon Constructs Ballistic Gun Enhanced Autogun Ballistic Cannon Improved Light Cannon Launcher Rocket Launcher Special Weapon Enhanced Flamer Impact Weapon Great Maul Slashing Weapon Phasing Sabre Piercing Weapon Heavy Pick Build | -11 -10 -10 -9 -9 -8 -8 -8 -6 -6 -6 -6 -5 ------- Run | Yrd Mat Min Mat Min Mat Sto Rec Fac Ext Cet Arc Fac Slots Evolved 10 | . . . 2 . 2 . . 4 . . . 2 Power 1 | . . . . . . . . . . . . 1 Propulsion 4 | . . . 2 . 1 . . 1 . . . . Utility 4 | . . . . . . . . 3 . . . 1 Weapon 1 | . . . . . 1 . . . . . . . Parts Attached 91 | 7 9 9 11 2 18 4 2 9 9 5 . 6 Power 14 | 1 1 2 2 . 1 . . 1 1 2 . 3 Engine 10 | 1 1 2 2 . 1 . . 1 1 1 . . Core 3 | . . . . . . . . . . 1 . 2 Reactor 1 | . . . . . . . . . . . . 1 Propulsion 15 | 2 . 3 2 . 4 2 . 1 1 . . . Treads 10 | 2 . 1 2 . 3 2 . . . . . . Leg 2 | . . . . . 1 . . 1 . . . . Wheel 2 | . . 2 . . . . . . . . . . Hover . | . . . . . . . . . . . . . Flight 1 | . . . . . . . . . 1 . . . Utility 29 | 2 2 2 2 1 6 1 1 4 3 2 . 3 Device 18 | 1 . 2 1 . 6 1 1 3 . 1 . 2 Storage 4 | 1 2 . . . . . . . 1 . . . Processor 2 | . . . . . . . . 1 . . . 1 Hackware . | . . . . . . . . . . . . . Protection 5 | . . . 1 1 . . . . 2 1 . . Artifact . | . . . . . . . . . . . . . Weapon 33 | 2 6 2 5 1 7 1 1 3 4 1 . . Energy Gun 6 | . . 2 1 . 2 . . . . 1 . . Energy Cannon 3 | . . . 2 1 . . . . . . . . Ballistic Gun 10 | 2 2 . . . 5 1 . . . . . . Ballistic Cannon 4 | . 4 . . . . . . . . . . . Launcher 2 | . . . . . . . . . 2 . . . Special Weapon . | . . . . . . . . . . . . . Impact Weapon 3 | . . . 2 . . . 1 . . . . . Slashing Weapon 4 | . . . . . . . . 2 2 . . . Piercing Weapon 1 | . . . . . . . . 1 . . . . Special Melee Weapon . | . . . . . . . . . . . . . Unidentified Prototypes 15 | . . 1 3 . 4 . 1 . 1 2 . 3 Parts Lost 14 | . . 3 1 1 4 . 1 2 1 1 . . Power 4 | . . 1 1 . . . . 1 . 1 . . Propulsion 5 | . . 1 . . 3 . . . 1 . . . Utility 3 | . . 1 . 1 1 . . . . . . . Weapon 2 | . . . . . . . 1 1 . . . . Highest Loss Streak 4 | . . 3 1 1 4 . 1 1 1 1 . . To Critical Strikes . | . . . . . . . . . . . . . Average Backups 16 | . 10 17 19 18 19 18 18 18 18 17 18 16 Power . | . . . 1 2 1 . . . . . . . Propulsion 1 | . . . 1 1 1 4 4 2 . 1 1 1 Utility 7 | . 1 5 7 7 8 7 9 10 12 10 10 8 Weapon 5 | . 7 10 8 7 6 5 3 4 4 4 5 4 Tool/Special . | . . . . . . . . . . . . . Unused Backups 55 | . 2 3 9 . 8 4 3 7 4 3 1 11 Power 4 | . 1 . 1 . . 1 . 1 . . . . Propulsion 11 | . . 2 . . 1 1 2 1 1 1 . 2 Utility 22 | . 1 . . . 5 2 . 4 1 2 1 6 Weapon 17 | . . 1 8 . 2 . 1 1 2 . . 2 Tool/Special 1 | . . . . . . . . . . . . 1 Average Slot Usage (%) 80 | . 99 92 99 99 90 84 69 67 62 56 60 63 Engine 7 | . 14 10 11 11 8 7 7 4 3 1 . . Treads 13 | . 28 18 32 33 23 7 2 3 . . . 2 Leg 3 | . . . . . 2 7 7 10 2 1 . . Flight 1 | . . . . . . . 3 . 4 2 6 1 Device 14 | . 14 14 18 11 14 15 8 19 13 19 20 22 Storage 8 | . 14 14 11 11 8 7 7 6 6 6 6 5 Processor 1 | . . . . . . . . 5 6 . . . Protection 2 | . . . 3 10 1 . . . 5 6 6 5 Energy Gun 5 | . . 9 13 . 8 7 9 2 2 3 6 5 Energy Cannon 3 | . . . 5 21 11 . . . . 2 6 5 Ballistic Gun 7 | . 12 12 . . 9 29 14 3 . . . . Ballistic Cannon 3 | . 15 5 . . . . . 2 3 3 . . Impact Weapon 1 | . . . 2 . . . 4 6 . . . . Slashing Weapon 1 | . . . . . . . . . 6 . . . Peak Build Rating 135 | 7 13 26 33 33 82 84 80 100 101 119 121 135 Average Rating 61 | 5 11 22 30 32 51 80 74 93 91 106 120 128 On Entrance 59 | . 7 13 26 33 33 82 77 72 95 93 120 121 Avg Prop Armor Cover (%) 6 | . . 12 . . 6 5 5 9 14 . . . Naked Turns . | . . . . . . . . . . . . . Heaviest Build 95 | 12 56 56 60 60 68 68 65 61 75 81 80 95 Greatest Support 141 | 40 40 40 60 60 90 90 111 112 90 141 117 117 Greatest Overweight (x) 5 | . 1 5 . . 3 . . . 2 1 . . Average Overweight (x) . | . . 2 . . . . . . . . . . Largest Inventory Capacity 20 | 8 20 20 20 20 20 20 20 20 20 20 20 20 Average Capacity 18 | 7 12 20 20 20 20 20 20 20 20 20 20 20 Most Carried 20 | 2 16 20 20 19 20 20 20 20 20 20 20 20 Average Carried 17 | . 10 17 19 18 19 19 19 19 19 18 19 18 Final Capacity 20 | 8 20 20 20 20 20 20 20 20 20 20 20 20 Final Carried 20 | 2 16 20 19 18 20 20 20 20 19 20 20 19 Scrap Engine Consumption 110 | . . . . . . . 42 15 33 13 2 5 Constructs Created 6 | . . . . . . . 3 . 1 2 . . Constructs Modified 55 | . . . . . . . 14 6 13 13 4 5 Class Distribution -------------------- 51% | Mutant 22% | Gunner 20% | Commander-Construct Dominant Class ---------------- Mutant | -10/Materials Mutant | -10/Mines Mutant | -9/Materials Mutant | -9/Mines Gunner | -8/Materials Gunner | -8/Storage Gunner | -8/Recycling Mutant | -6/Factory Commander-Construct | -6/Extension Commander-Construct | -6/Cetus Commander-Construct | -6/Archives Commander-Construct | -5/Factory Resources | -11 -10 -10 -9 -9 -8 -8 -8 -6 -6 -6 -6 -5 ----------- Run | Yrd Mat Min Mat Min Mat Sto Rec Fac Ext Cet Arc Fac Matter Collected 5072 | 296 306 823 305 25 533 927 952 430 264 85 6 120 Remotely . | . . . . . . . . . . . . . Salvage Created 6284 | 124 296 199 376 168 721 1380 742 1032 463 113 272 398 Parts 268 | 10 22 2 26 6 30 59 38 24 17 7 12 15 Haulers Intercepted 7 | . 1 . 1 . 3 1 . . . . . 1 Recyclers Shooed 9 | . . . . . 1 2 1 5 . . . . Parts Field Recycled . | . . . . . . . . . . . . . Retrieved Matter . | . . . . . . . . . . . . . Parts Self-Destructed . | . . . . . . . . . . . . . Prevented . | . . . . . . . . . . . . . Parts Restored . | . . . . . . . . . . . . . Kills | -11 -10 -10 -9 -9 -8 -8 -8 -6 -6 -6 -6 -5 ------- Run | Yrd Mat Min Mat Min Mat Sto Rec Fac Ext Cet Arc Fac Combat Hostiles Destroyed 102 | . 9 13 8 3 7 25 11 5 11 2 4 4 Melee 8 | . . . 1 1 . . 2 2 2 . . . Guns 65 | . 4 11 5 . 4 25 8 1 2 2 2 1 Cannons 22 | . 5 2 1 2 2 . . 1 4 . 2 3 AOE 4 | . . . 1 . . . . . 3 . . . Classes Destroyed 18 | 3 4 1 2 . 1 1 3 3 . . . . Worker 6 | 1 2 . 1 . 1 . . 1 . . . . Builder 4 | . . . . . . . . 4 . . . . Tunneler 3 | 2 . . . . . . . 1 . . . . Hauler 7 | . 1 . 1 . 3 1 . . . . . 1 Recycler 11 | 1 1 . . 1 . . 2 6 . . . . Mechanic 2 | . . . . . 2 . . . . . . . Operator 4 | . . . 1 . 2 . . . 1 . . . Watcher 3 | . 1 . . . . 1 . 1 . . . . Swarmer 13 | . 3 . 4 . . 1 . . 5 . . . Grunt 36 | . 6 2 1 3 4 11 3 . 5 . . 1 Duelist 2 | . . . . . . 1 1 . . . . . Protector 2 | . . . . . . . 1 . . . 1 . Sentry 27 | . . . 3 . 2 12 3 1 1 . 3 2 Hunter 3 | . . . . . . . . 3 . . . . Programmer 1 | . . . . . . . . 1 . . . . Cetus Guard 2 | . . . . . . . . . . 2 . . Enhanced Grunt 1 | . . . . . . . . . . . . 1 Scientist 1 | . . . . . . . 1 . . . . . Scrapper 3 | . . . . . . . 3 . . . . . Assembled 11 | . . 11 . . . . . . . . . . Best Kill Streak 13 | 2 3 3 5 3 6 13 4 4 4 2 3 2 Combat Bots Only 12 | . 3 3 4 3 4 12 4 2 4 2 3 1 Max Kills in Single Turn 2 | 1 1 1 2 1 2 1 1 1 2 1 1 1 Gunslinging . | . . . . . . . . . . . . . Exploded 2 | . . . 1 . . . . . 2 . . . Melee 1 | . . . 1 1 . . 1 1 1 . . . Uniques/NPCs Destroyed 1 | . . . . . 1 . . . . . . . 7R-MNS (-8/Materials) Combat | -11 -10 -10 -9 -9 -8 -8 -8 -6 -6 -6 -6 -5 -------- Run | Yrd Mat Min Mat Min Mat Sto Rec Fac Ext Cet Arc Fac Hostile Shots Fired 476 | . 31 49 35 13 40 43 29 124 29 54 9 20 Missed 137 | . 11 11 7 5 7 13 8 33 8 22 5 7 Hits 339 | . 20 38 28 8 33 30 21 91 21 32 4 13 Melee 7 | . . 4 . . 3 . . . . . . . Projectile 332 | . 20 34 28 8 30 30 21 91 21 32 4 13 Critical Strikes 20 | . . 2 1 . 4 1 . . . 12 . . Part Disruptions 1 | . . . . . . . . 1 . . . . Damage Taken 5712 | . 216 606 322 239 729 470 406 1129 401 812 85 297 Core 621 | . 62 125 71 15 53 27 70 82 9 84 . 23 Absorbed by Shields 275 | . . . . . . . . . 168 107 . . Regen/Repaired (Parts) 1350 | . . . . . . . 49 186 404 449 . 262 Core Remaining (%) 88 | 100 . 96 . 85 . . 80 . . . 83 . Volleys Fired 336 | 10 30 32 18 6 50 48 25 37 21 24 16 19 Largest 5 | 2 2 2 2 2 5 5 5 2 1 1 2 2 Hottest 269 | 40 66 90 136 136 235 156 173 101 88 240 269 269 Shots Fired 779 | 20 54 64 36 8 149 216 95 44 21 24 21 27 Gun 593 | 20 18 52 22 . 91 216 95 33 3 19 16 8 Cannon 184 | . 36 12 14 8 58 . . 11 16 5 5 19 Launcher 2 | . . . . . . . . . 2 . . . Special . | . . . . . . . . . . . . . Kinetic 486 | 20 54 46 . . 58 170 65 44 19 . 3 7 Thermal 246 | . . . 15 8 85 46 30 . . 24 18 20 Explosive 2 | . . . . . . . . . 2 . . . Electromagnetic 45 | . . 18 21 . 6 . . . . . . . Robot Hit Streak 27 | 17 27 7 20 10 20 22 21 24 9 14 14 18 Robot Miss Streak 5 | . 5 5 2 . 2 2 2 3 2 2 1 2 Penetration Max 1 | . . . . . . . . 1 . . . . Secondary Targets 8 | . 1 . . . 1 6 . . . . . . Max Gunslinging Chain 1 | . 1 . . . 1 1 . . . . . . Shots Hit Robots 568 | 17 36 41 31 8 93 137 68 49 31 20 18 19 Core Hits 235 | 6 14 25 18 3 30 53 21 23 21 7 7 7 Critical Kills 4 | . . 1 . . 1 1 . . . . 1 . Critical Parts Destroyed 9 | . . . . 2 . . 3 2 2 . . . Critical Strikes 25 | . 2 1 1 2 4 3 4 2 5 . 1 . Burn 5 | . . . 1 . 3 1 . . . . . . Meltdown 1 | . . . . . 1 . . . . . . . Destroy 4 | . . 1 . . . 2 . . . . 1 . Blast 2 | . 2 . . . . . . . . . . . Smash 10 | . . . . 2 . . 4 2 2 . . . Sever 3 | . . . . . . . . . 3 . . . Melee Attacks 43 | . . . 8 4 . . 5 14 12 . . . Impact 35 | . . . 8 4 . . 5 13 5 . . . Slashing 7 | . . . . . . . . . 7 . . . Piercing 1 | . . . . . . . . 1 . . . . Sneak Attacks 8 | . . . . . . . . 6 2 . . . Combat Hostiles 1 | . . . . . . . . 1 . . . . Follow-up Attacks 1 | . . . 1 . . . . . . . . . Damage Inflicted 14056 | 189 634 576 818 447 1607 2463 1436 1837 1597 596 692 1164 Guns 7228 | 189 141 404 300 . 942 2391 1106 611 71 454 416 203 Cannons 4003 | . 487 172 324 103 665 . . 228 653 142 276 953 Explosions 702 | . . . 46 193 . . . 154 309 . . . Melee 1914 | . . . 148 140 . . 218 844 564 . . . Ramming 209 | . 6 . . 11 . 72 112 . . . . 8 Kinetic 6931 | 189 628 463 100 . 664 1992 756 839 724 . 221 355 Thermal 4118 | . . . 286 296 919 399 350 . . 596 471 801 Explosive 463 | . . . . . . . . 154 309 . . . Electromagnetic 421 | . . 113 284 . 24 . . . . . . . Impact 1552 | . . . 148 140 . . 218 803 243 . . . Slashing 321 | . . . . . . . . . 321 . . . Piercing 41 | . . . . . . . . 41 . . . . Highest Corruption 3 | . . 3 . . . . . 2 2 . . . Average Corruption 2 | . . 3 . . . . . 1 2 . . . Corruption Purged . | . . . . . . . . . . . . . Corruption Blocked . | . . . . . . . . . . . . . Effects 6 | . . 4 . . . . . 1 1 . . . Message Errors 1 | . . 1 . . . . . . . . . . Matter Fused 2 | . . 1 . . . . . . 1 . . . Energy Discharges 1 | . . 1 . . . . . . . . . . Data Loss (minor) 1 | . . . . . . . . 1 . . . . Alerts 1 | . . 1 . . . . . . . . . . Overload Shots 1 | . . . . . . . . . . 1 . . Overflow Damage 949 | . . 15 116 97 6 12 139 388 176 . . . Projectiles 112 | . . 15 80 11 6 . . . . . . . Explosions 65 | . . . 5 . . . . 55 5 . . . Melee 772 | . . . 31 86 . 12 139 333 171 . . . Knockbacks 22 | . 5 2 1 1 . . . 10 2 . 1 . Impact 9 | . 1 . 1 1 . . . 5 1 . . . Kinetic 12 | . 4 2 . . . . . 4 1 . 1 . Secondary 1 | . . . . . . . . 1 . . . . Self-Inflicted Damage 330 | . . . 79 141 . . . 110 . . . . Shots 6 | . . . 2 3 . . . 1 . . . . Rammed 4 | . 1 . . 2 . . . . . . . 1 Targets Rammed 16 | . 3 . . 2 . 4 6 . . . . 1 Kicked 10 | . . . . . . 4 6 . . . . . Crushed 2 | . 2 . . . . . . . . . . . Highest Temperature 403 | . 66 135 297 234 359 255 403 242 228 335 277 372 Average Temperature 105 | . 23 53 98 105 128 80 143 69 82 109 117 169 Received Heat Transfer 1242 | . 78 101 21 54 297 207 165 72 96 40 18 93 Effects 14 | . . . . . 8 . 1 . . 2 . 3 Shutdowns 3 | . . . . . . . 1 . . . . 2 Energy Bleed 2 | . . . . . 1 . . . . . . 1 Interference 7 | . . . . . 5 . . . . 2 . . Matter Decay 2 | . . . . . 2 . . . . . . . Siege Activations . | . . . . . . . . . . . . . Martial Activations . | . . . . . . . . . . . . . Shielding Activations . | . . . . . . . . . . . . . Robots Disrupted . | . . . . . . . . . . . . . Combat Hostiles . | . . . . . . . . . . . . . Robots Corrupted 5 | . . . . . . . 1 4 . . . . Combat Hostiles 2 | . . . . . . . 1 1 . . . . Parts Fried 15 | . . . . 2 . . 1 10 2 . . . Impact Corruptions 21 | . . . 1 2 . 1 3 11 3 . . . Robots Melted 1 | . . . . . 1 . . . . . . . Combat Hostiles 1 | . . . . . 1 . . . . . . . Parts Melted 10 | . . . 1 . 2 . 2 3 . . . 2 Heat Transferred 5059 | . . . 568 435 1791 925 644 . . 259 37 400 Parts Sabotaged . | . . . . . . . . . . . . . Parts Stolen . | . . . . . . . . . . . . . Parts Stripped . | . . . . . . . . . . . . . Power Chain Reactions 2 | . . . 2 . . . . . . . . . Alert | -11 -10 -10 -9 -9 -8 -8 -8 -6 -6 -6 -6 -5 ------- Run | Yrd Mat Min Mat Min Mat Sto Rec Fac Ext Cet Arc Fac Maximum Alert Level 3 | . . . 1 1 . 2 1 1 3 2 2 2 Low Security (%) 63 | 100 100 100 27 78 100 48 93 . 41 . 22 50 Level 1 27 | . . . 72 21 . 25 6 100 35 48 22 42 Level 2 8 | . . . . . . 26 . . 19 51 54 6 Level 3 . | . . . . . . . . . 4 . . . Level 4 . | . . . . . . . . . . . . . Level 5 . | . . . . . . . . . . . . . High Security . | . . . . . . . . . . . . . Max Security . | . . . . . . . . . . . . . Peak Influence 724 | 5 151 51 301 246 179 481 232 293 724 450 466 560 Initial 398 | . . . . 95 74 33 183 293 119 398 129 149 Average 165 | 1 45 5 200 135 83 246 90 248 283 396 341 235 Influence Increases 5825 | 20 341 51 577 391 402 689 502 465 1185 277 357 568 Destroy 0b10 Robot/C 2720 | . 180 40 340 80 220 500 140 100 600 160 160 200 Destroy 0b10 Robot/NC 270 | 20 25 . 25 5 40 10 15 65 45 10 5 5 Destroy Leader 476 | . 44 10 76 10 56 124 10 42 52 . 10 42 Allied During Kill 962 | . . . 39 2 18 . . . 427 84 175 217 Successful Hack 65 | . . . 7 . 22 7 6 16 . . . 7 Select Force Hacks 210 | . 60 . 30 . 30 . 90 . . . . . Disable Machine 195 | . . . 15 60 15 30 15 30 . 15 . 15 Destroy Structure 177 | . 2 1 30 12 1 3 3 12 46 8 7 52 Advance Influence 200 | . . . . . . . . 200 . . . . Partial Spotted 30 | . . . . . . 15 . . . . . 15 Lose Combat Pursuer 90 | . 30 . 15 . . . 15 . 15 . . 15 Miscellaneous 430 | . . . . 222 . . 208 . . . . . Influence Decreases 5258 | 20 341 51 332 446 513 296 750 445 717 666 254 427 Entered New Map 1642 | . . . . 150 116 46 289 131 125 314 194 277 Time Decay 3126 | 20 341 51 222 286 317 230 451 294 482 222 60 150 Lost Part 110 | . . . 10 10 40 . 10 20 10 10 . . Lost Ally 380 | . . . 100 . 40 20 . . 100 120 . . Squads Dispatched 20 | . 4 . 2 . 4 4 1 1 2 . 1 1 Investigation 5 | . 2 . 1 . 2 . . . . . . . Extermination 1 | . . . . . . . . 1 . . . . Reinforcement 9 | . 2 . 1 . 2 1 . . 2 . . 1 Assault 2 | . . . . . . . 1 . . . 1 . Garrison 3 | . . . . . . 3 . . . . . . Intercept . | . . . . . . . . . . . . . Searches Triggered . | . . . . . . . . . . . . . Construction Impeded 1 | . . . . . . . . . 1 . . . Haulers Reinforced 1 | . . . . . . . . . . . . 1 Active Scanning Responses . | . . . . . . . . . . . . . Cargo Convoy Interrupts . | . . . . . . . . . . . . . Stealth | -11 -10 -10 -9 -9 -8 -8 -8 -6 -6 -6 -6 -5 --------- Run | Yrd Mat Min Mat Min Mat Sto Rec Fac Ext Cet Arc Fac Distress Signals 10 | . . 2 2 . 2 1 . . 1 2 . . Communications Jammed 1 | . . . . . . . . . . . . 1 Distress Signals 1 | . . . . . . . . . . . . 1 Times Spotted 184 | . 19 12 19 3 24 28 12 6 32 10 8 11 Peak Tracking Total 7 | . 3 3 6 3 4 7 5 2 6 5 5 3 Tactical Retreats 6 | . 2 . 1 . . . 1 . 1 . . 1 Traps | -11 -10 -10 -9 -9 -8 -8 -8 -6 -6 -6 -6 -5 ------- Run | Yrd Mat Min Mat Min Mat Sto Rec Fac Ext Cet Arc Fac Traps Triggered 3 | . 1 . . . . . . . 2 . . . Indirectly . | . . . . . . . . . . . . . Trap Hack Attempts . | . . . . . . . . . . . . . Triggered . | . . . . . . . . . . . . . Disarmed 6 | . . . . . . 6 . . . . . . Reprogrammed . | . . . . . . . . . . . . . Reused . | . . . . . . . . . . . . . Traps Extracted . | . . . . . . . . . . . . . Installed . | . . . . . . . . . . . . . Triggered . | . . . . . . . . . . . . . Machines | -11 -10 -10 -9 -9 -8 -8 -8 -6 -6 -6 -6 -5 ---------- Run | Yrd Mat Min Mat Min Mat Sto Rec Fac Ext Cet Arc Fac Machines Disabled 15 | . . . 1 4 1 2 1 2 2 1 . 1 Max in Single Turn 3 | . . . . 3 1 1 1 2 1 1 . 1 Garrison Access 2 | . . . . . 1 . . . . . . 1 Machines Repaired . | . . . . . . . . . . . . . Machines Dismantled . | . . . . . . . . . . . . . Machines Sabotaged . | . . . . . . . . . . . . . Overloaded Fab Kills . | . . . . . . . . . . . . . Hacking | -11 -10 -10 -9 -9 -8 -8 -8 -6 -6 -6 -6 -5 --------- Run | Yrd Mat Min Mat Min Mat Sto Rec Fac Ext Cet Arc Fac Machines Accessed 35 | . 5 . 2 . 7 5 6 4 . . . 6 Terminals 19 | . 3 . 1 . 5 5 . 2 . . . 3 Fabricators 1 | . . . . . . . . . . . . 1 Repair Stations 1 | . . . . . . . . . . . . 1 Recycling Units 9 | . 2 . 1 . 1 . 5 . . . . . Scanalyzers 1 | . . . . . . . . 1 . . . . Garrison Access 3 | . . . . . 1 . . 1 . . . 1 Total Hacks 70 | . 8 . 5 . 15 11 11 9 . . . 11 Successful 30 | . 2 . 2 . 8 4 7 3 . . . 4 Failed 40 | . 6 . 3 . 7 7 4 6 . . . 7 Catastrophic 11 | . 2 . . . 2 2 1 2 . . . 2 Database Lockouts . | . . . . . . . . . . . . . Manual 42 | . 9 . 5 . 9 5 10 . . 1 . 3 Terminals 47 | . 6 . 4 . 13 11 . 6 . . . 7 Fabricators 2 | . . . . . . . . . . . . 2 Repair Stations 1 | . . . . . . . . . . . . 1 Recycling Units 13 | . 2 . 1 . 1 . 9 . . . . . Scanalyzers 2 | . . . . . . . . 2 . . . . Garrison Access 3 | . . . . . 1 . . 1 . . . 1 Terminal Hacks 15 | . . . 1 . 5 4 2 1 . . . 2 Part Schematic 1 | . . . . . . 1 . . . . . . Robot Schematic 1 | . . . 1 . . . . . . . . . Robot Analysis 2 | . . . . . 2 . . . . . . . Open Door 2 | . . . . . . 1 . 1 . . . . Open DSF 1 | . . . . . . . . . . . . 1 Branch Access Points 2 | . . . . . 1 . . . . . . 1 Locate Traps 1 | . . . . . . 1 . . . . . . Disarm Traps 1 | . . . . . . 1 . . . . . . Hauler Manifests 1 | . . . . . 1 . . . . . . . Registered Prototypes 1 | . . . . . 1 . . . . . . . Release Object 2 | . . . . . . . 2 . . . . . Fabricator Hacks . | . . . . . . . . . . . . . Repair Station Hacks 1 | . . . . . . . . . . . . 1 Scan Component 1 | . . . . . . . . . . . . 1 Recycling Unit Hacks . | . . . . . . . . . . . . . Scanalyzer 2 | . . . . . . . . 2 . . . . Insert Component 1 | . . . . . . . . 1 . . . . Retrieve Study 1 | . . . . . . . . 1 . . . . Garrison Access Hacks 2 | . . . . . 1 . . . . . . 1 Seal Access 2 | . . . . . 1 . . . . . . 1 Unauthorized Hacks 10 | . 2 . 1 . 2 . 5 . . . . . Terminals 1 | . . . . . 1 . . . . . . . Botnet 1 | . . . . . 1 . . . . . . . Fabricators . | . . . . . . . . . . . . . Repair Stations . | . . . . . . . . . . . . . Recycling Units 9 | . 2 . 1 . 1 . 5 . . . . . Reject 1 | . . . . . . . 1 . . . . . Mask 1 | . . . . . . . 1 . . . . . Tunnel 7 | . 2 . 1 . 1 . 3 . . . . . Scanalyzers . | . . . . . . . . . . . . . Garrison Access . | . . . . . . . . . . . . . Data Cores Recovered 1 | . . . 1 . . . . . . . . . Used . | . . . . . . . . . . . . . Hacking Detections 22 | . 3 . 1 . 4 4 2 4 . . . 4 Full Trace Events 3 | . 1 . . . . 1 1 . . . . . Feedback Events . | . . . . . . . . . . . . . Feedback Blocked . | . . . . . . . . . . . . . Robot Schematics Acquired 1 | . . . 1 . . . . . . . . . Robots Built . | . . . . . . . . . . . . . Authchips . | . . . . . . . . . . . . . Time . | . . . . . . . . . . . . . Total Robot Build Rating . | . . . . . . . . . . . . . Part Schematics Acquired 1 | . . . . . . 1 . . . . . . Parts Built . | . . . . . . . . . . . . . Authchips . | . . . . . . . . . . . . . Time . | . . . . . . . . . . . . . Total Part Build Rating . | . . . . . . . . . . . . . Part Studies Acquired 1 | . . . . . . . . 1 . . . . Parts Repaired . | . . . . . . . . . . . . . Time . | . . . . . . . . . . . . . Parts Recycled . | . . . . . . . . . . . . . Recycled Matter . | . . . . . . . . . . . . . Retrieved Matter . | . . . . . . . . . . . . . Retrieved Components . | . . . . . . . . . . . . . Parts Scanalyzed . | . . . . . . . . . . . . . Part Schematics Acquired . | . . . . . . . . . . . . . Parts Damaged . | . . . . . . . . . . . . . Bothacking | -11 -10 -10 -9 -9 -8 -8 -8 -6 -6 -6 -6 -5 ------------ Run | Yrd Mat Min Mat Min Mat Sto Rec Fac Ext Cet Arc Fac Used RIF Installer . | . . . . . . . . . . . . . Robots Hacked . | . . . . . . . . . . . . . Non-combat . | . . . . . . . . . . . . . Combat . | . . . . . . . . . . . . . Robot Hacks Applied . | . . . . . . . . . . . . . Relay Couplers Released . | . . . . . . . . . . . . . Fabnet Peak Effective % . | . . . . . . . . . . . . . Robots Rewired 13 | . . . . . . . . . 13 . . . Allies Hacked . | . . . . . . . . . . . . . Hacks Repelled . | . . . . . . . . . . . . . Allies | -11 -10 -10 -9 -9 -8 -8 -8 -6 -6 -6 -6 -5 -------- Run | Yrd Mat Min Mat Min Mat Sto Rec Fac Ext Cet Arc Fac Total Allies 30 | . . . 5 3 . 1 . . 16 5 . . Largest Group 11 | . . . 5 3 2 . . . 11 7 5 5 Highest-Rated Group 480 | . . . 125 40 32 . . . 463 480 480 480 Highest-Rated Ally 159 | . . . 25 16 16 . . . 159 159 96 96 Total Orders . | . . . . . . . . . . . . . Ally Attacks 318 | . . . 37 1 24 . . . 158 45 31 22 Total Damage 8649 | . . . 711 15 280 . . . 4097 1126 1405 1015 Kills 67 | . . . 11 1 5 . . . 30 9 5 6 Allies Corrupted . | . . . . . . . . . . . . . Allies Melted . | . . . . . . . . . . . . . X0-1V1 Amusement Gains 234 | . 6 50 . . 94 20 64 . . . . . Good Acts 48 | . . 9 4 1 3 7 9 8 5 2 . . Bad Acts 25 | . . 2 1 6 1 3 4 1 1 1 3 2 Intel | -11 -10 -10 -9 -9 -8 -8 -8 -6 -6 -6 -6 -5 ------- Run | Yrd Mat Min Mat Min Mat Sto Rec Fac Ext Cet Arc Fac Active Infowar (turns) 2268 | 70 1203 84 381 . 4 . . 140 117 . . 269 Sensors 257 | . . . . . . . . 140 117 . . . Seismic 1742 | 70 1203 84 381 . 4 . . . . . . . Jamming 269 | . . . . . . . . . . . . 269 Robot Analysis Total 2 | . . . . . 2 . . . . . . . Derelict Logs Recovered 2 | . . . . 2 . . . . . . . . Drone Launches . | . . . . . . . . . . . . . Drone Recoveries . | . . . . . . . . . . . . . Exploration | -11 -10 -10 -9 -9 -8 -8 -8 -6 -6 -6 -6 -5 ------------- Run | Yrd Mat Min Mat Min Mat Sto Rec Fac Ext Cet Arc Fac Turns Passed 8218 | 160 1203 439 571 638 713 482 1220 646 1245 461 122 318 Spaces Moved 4494 | 75 546 151 259 379 380 325 699 433 611 188 87 361 Core 5 | 5 . . . . . . . . . . . . Treads 1638 | 70 546 66 259 379 164 . . . . . . 154 Legs 1909 | . . . . . 216 325 699 433 168 68 . . Wheels 85 | . . 85 . . . . . . . . . . Hover 128 | . . . . . . . . . . . . 128 Flight 729 | . . . . . . . . . 443 120 87 79 Fastest Speed 47 | 50 160 140 160 160 90 90 90 90 90 66 66 47 Average Speed 122 | 152 175 188 160 160 122 90 90 91 144 109 66 55 Slowest Speed 400 | 160 240 320 160 160 400 90 110 108 271 163 66 66 Overloaded Moves . | . . . . . . . . . . . . . Propulsion Burnouts . | . . . . . . . . . . . . . Robots Hopped 1 | . . . . . . . . . . . 1 . Potential Cave-ins . | . . . . . . . . . . . . . Cave-ins Triggered . | . . . . . . . . . . . . . Exploration Rate (%) 52 | 5 77 40 34 79 42 78 94 13 70 66 77 10 Regions Visited 12 Branch Regions 7 Pre-discovered Areas 8 | . 2 . 1 1 1 . 3 . . . . . Known Exits Taken 6 | . . . . 1 1 . 1 1 1 . 1 . Unknown Exits Taken 6 | 1 1 1 1 . . 1 . . . 1 . . Scrap Searched 3 | . . . . 3 . . . . . . . . Spaces Dug 9 | . . . . . . . . . 7 . . 2 Terrain Destroyed 54 | . 1 1 9 12 . . . 11 14 3 . 3 Melee . | . . . . . . . . . . . . . Projectile 8 | . 1 1 . . . . . . . 3 . 3 AOE 46 | . . . 9 12 . . . 11 14 . . . Terrain Rammed . | . . . . . . . . . . . . . Walls Destroyed . | . . . . . . . . . . . . . Machines Disabled . | . . . . . . . . . . . . . Actions | -11 -10 -10 -9 -9 -8 -8 -8 -6 -6 -6 -6 -5 --------- Run | Yrd Mat Min Mat Min Mat Sto Rec Fac Ext Cet Arc Fac Total 6682 | 99 736 238 375 395 545 464 1255 621 939 428 133 454 Wait 1196 | 6 122 33 39 2 49 56 499 96 22 190 30 52 Move 4480 | 74 545 150 258 378 379 324 698 432 610 187 84 361 Hop 1 | . . . . . . . . . . . 1 . Pick Up 98 | 2 16 6 14 . 16 9 6 12 3 9 1 4 Fast Attach 48 | 7 3 3 7 . 14 2 1 3 4 2 . 2 Attach 25 | . . 3 3 1 2 1 1 6 2 2 . 4 Detach 19 | . 2 . 3 . 4 1 1 2 5 1 . . Swap 53 | . 7 7 6 2 8 7 . 5 4 1 . 6 Drop 123 | . 8 4 20 . 23 12 13 14 11 12 1 5 Fire 336 | 10 30 32 18 6 50 48 25 37 21 24 16 19 Melee 42 | . . . 7 4 . . 5 14 12 . . . Ram . | . . . . . . . . . . . . . Kick 10 | . . . . . . 4 6 . . . . . Crush 6 | . 3 . . 2 . . . . . . . 1 Escape Stasis 10 | . . . . . . . . . 10 . . . Rewire 235 | . . . . . . . . . 235 . . . Trap . | . . . . . . . . . . . . . Miscellaneous . | . . . . . . . . . . . . . Route ------- -11/Scrapyard -10/Materials (discovered 4 exits: *Mat x2 / [*Min] / [*Sub]) -10/Mines -9/Materials -9/Mines -8/Materials (discovered 2 exits: *Fac / *Sto) -8/Storage (discovered 2 exits: *Fac / *Rec) -8/Recycling -6/Factory -6/Extension (discovered 3 exits: *Fac x2 / *Cet) -6/Cetus (discovered 3 exits: *Fac x2 / [*Arc]) -6/Archives (discovered 3 exits: *Fac / [*Hub x2]) -5/Factory (discovered 3 exits: *Fac / Upp x2) History --------- Turn | Location | Event 29 | -11/Scrapyard | Discovered new exit (range 16) 161 | -11/Scrapyard | Entered Materials 309 | -10/Materials | Build established: Mutant 670 | -10/Materials | Discovered new exit (range 8) 732 | -10/Materials | Discovered new exit (range 15) 757 | -10/Materials | Discovered new exit (range 15) 1152 | -10/Materials | Discovered new exit (range 7) 1228 | -10/Materials | Prayed at D.C.S.S. Altar Unit 1364 | -10/Materials | Entered Mines 1421 | -10/Mines | Assembled infested the area 1425 | -10/Mines | Energy capacity permanently improved by X0-1V1 (+200; -100 max core) 1627 | -10/Mines | Core integrity fell below 50% 1657 | -10/Mines | Lost 3 parts (1p1n1u) 1705 | -10/Mines | X0-1V1 mutated your Propulsion slot to Utility slot 1752 | -10/Mines | Core integrity permanently improved by X0-1V1 (+400) 1766 | -10/Mines | Melee accuracy permanently improved by X0-1V1 (+9%; -90 max core) 1800 | -10/Mines | Discovered new exit (range 3) 1803 | -10/Mines | Entered Materials 1803 | -9/Materials | Evolved 2 slots: Propulsion x2 1915 | -9/Materials | X0-1V1 sent you to a vault 2233 | -9/Materials | Discovered new exit (range 9) 2374 | -9/Materials | Entered Mines 2432 | -9/Mines | Learned location of 1 exit from Materials 2467 | -9/Mines | Assisted by bots powering up and referring to "LRC-V3" 2693 | -9/Mines | X0-1V1 rewrote Mercenary 2a IFF filter 2745 | -9/Mines | Identified exit to Materials 2745 | -9/Mines | X0-1V1 revealed exit location to -8/Materials 2816 | -9/Mines | Learned location of Zion (-6) 2856 | -9/Mines | X0-1V1 added 0b10 threat records associated with you (considerable) 3012 | -9/Mines | Entered Materials 3012 | -8/Materials | Accompanied by 2 allies 3012 | -8/Materials | Evolved 2 slots: Propulsion x1, Weapon x1 3013 | -8/Materials | Identified exit to Factory 3161 | -8/Materials | Identified exit to Storage 3302 | -8/Materials | Met 7R-MNS 3393 | -8/Materials | Attacked by 7R-MNS 3427 | -8/Materials | 7R-MNS lamented failing the tripod run 3427 | -8/Materials | Destroyed 7R-MNS 3433 | -8/Materials | Found Prototype Device 3433 | -8/Materials | Identified Exp. Focal Shield 3442 | -8/Materials | Found Prototype Leg 3442 | -8/Materials | Identified Tripod Weapons Platform 3443 | -8/Materials | Attached Tripod Weapons Platform, gained temporary slots: Weapon x2 3456 | -8/Materials | Lost 4 parts (3n1u) 3458 | -8/Materials | Found Prototype Protection 3534 | -8/Materials | Build established: Gunner 3725 | -8/Materials | Entered Storage 3862 | -8/Storage | Garrison activated, responded to threat 3994 | -8/Storage | X0-1V1 turns hostiles against one another 4058 | -8/Storage | Destroyed 12 combat bots 4073 | -8/Storage | Discovered exit to Factory (range 7) 4085 | -8/Storage | Forcibly received Sfc. Transmogifier from X0-1V1 4172 | -8/Storage | Used back door to open Recycling access 4172 | -8/Storage | Discovered new exit (range 4) 4207 | -8/Storage | Entered Recycling 4325 | -8/Recycling | Scanned before Scraplab entrance 4336 | -8/Recycling | Angered Scraplab inhabitants 4353 | -8/Recycling | Identified exit to Factory 4353 | -8/Recycling | X0-1V1 revealed exit location to -6/Factory 4377 | -8/Recycling | Found Prototype Device 4377 | -8/Recycling | Identified Scrap Engine 5267 | -8/Recycling | Build established: Mutant 5349 | -8/Recycling | X0-1V1 activates XOMVISION 5400 | -8/Recycling | X0-1V1 added 0b10 threat records associated with you (considerable) 5427 | -8/Recycling | Entered Factory 5427 | -6/Factory | Evolved 4 slots: Propulsion x1, Utility x3 5479 | -6/Factory | X0-1V1 foreshadows a heat wave 5599 | -6/Factory | Ambient heat levels rising (+10) 5712 | -6/Factory | Identified Centrium Heavy Armor Plating 5737 | -6/Factory | Ambient heat levels rising (+10) 5882 | -6/Factory | Ambient heat levels falling (-10) 5993 | -6/Factory | Ambient heat levels falling (-10) 6066 | -6/Factory | Discovered new exit (range 10) 6072 | -6/Factory | Identified exit to Extension 6073 | -6/Factory | Entered Extension 6079 | -6/Extension | X0-1V1 dreamt of freedom 6080 | -6/Extension | Rescued a captive Derelict 6087 | -6/Extension | Rescued a captive Derelict 6088 | -6/Extension | Rescued a captive Derelict 6089 | -6/Extension | Rescued a captive Derelict 6090 | -6/Extension | Rescued a captive Derelict 6106 | -6/Extension | Rescued a captive Derelict 6108 | -6/Extension | Rescued a captive Derelict 6110 | -6/Extension | Rescued a captive Derelict 6112 | -6/Extension | Rescued a captive Derelict 6117 | -6/Extension | Rescued A7 6289 | -6/Extension | Lost 3 allies 6657 | -6/Extension | Build established: Commander-Construct 6883 | -6/Extension | X0-1V1 activates XOMVISION 6932 | -6/Extension | Spotted B-75 Beast 6955 | -6/Extension | Allies destroyed B-75 Beast 6958 | -6/Extension | Spotted B-75 Beast 6962 | -6/Extension | Discovered new exit (range 15) 6975 | -6/Extension | Allies destroyed B-75 Beast 7284 | -6/Extension | Discovered new exit (range 16) 7286 | -6/Extension | Discovered new exit (range 15) 7309 | -6/Extension | Identified exit to Cetus 7318 | -6/Extension | Entered Cetus 7318 | -6/Cetus | Accompanied by 7 allies (A7) 7323 | -6/Cetus | Acquired a Cetus Manufacturing Module code from A7 7339 | -6/Cetus | Spotted Cetus Guard 7339 | -6/Cetus | Spotted Cetus Guard 7341 | -6/Cetus | Spotted Cetus Guard 7342 | -6/Cetus | Spotted Cetus Guard 7345 | -6/Cetus | Allies destroyed Cetus Guard 7351 | -6/Cetus | Allies destroyed Cetus Guard 7357 | -6/Cetus | Allies destroyed Cetus Guard 7359 | -6/Cetus | Allies destroyed Cetus Guard 7384 | -6/Cetus | Lost 3 allies 7473 | -6/Cetus | Started Cetus Manufacturing Module 7484 | -6/Cetus | Escorted A7 to Cetus Mainframe 7495 | -6/Cetus | Discovered new exit (range 15) 7498 | -6/Cetus | Manufactured an Enhanced Grunt 7511 | -6/Cetus | Spotted Cetus Guard 7511 | -6/Cetus | Spotted Cetus Guard 7514 | -6/Cetus | Spotted Cetus Guard 7514 | -6/Cetus | Spotted Cetus Guard 7523 | -6/Cetus | Manufactured an Enhanced Grunt 7523 | -6/Cetus | Allies destroyed Cetus Guard 7529 | -6/Cetus | Allies destroyed Cetus Guard 7548 | -6/Cetus | Manufactured an Enhanced Grunt 7548 | -6/Cetus | Destroyed Cetus Guard 7554 | -6/Cetus | Extracted ID and sensor layout for unrecognized location from A7's data core 7559 | -6/Cetus | Destroyed Cetus Guard 7564 | -6/Cetus | Discovered new exit (range 15) 7570 | -6/Cetus | Met Revision 17 7573 | -6/Cetus | Manufactured an Enhanced Grunt 7576 | -6/Cetus | Lost 4 allies 7598 | -6/Cetus | Manufactured an Enhanced Grunt 7673 | -6/Cetus | Identified exit to Factory 7673 | -6/Cetus | X0-1V1 revealed exit location to -5/Factory 7779 | -6/Cetus | Entered Archives 7779 | -6/Archives | Accompanied by 5 allies 7831 | -6/Archives | Discovered new exit (range 16) 7854 | -6/Archives | Discovered new exit (range 16) 7871 | -6/Archives | Discovered exit to Factory (range 16) 7901 | -6/Archives | Entered Factory 7901 | -5/Factory | Accompanied by 5 allies 7901 | -5/Factory | Evolved 2 slots: Power x1, Utility x1 7951 | -5/Factory | Identified exit to DSF 7958 | -5/Factory | X0-1V1 sent you into danger 8071 | -5/Factory | X0-1V1 rewrote Enhanced Grunt IFF filter 8080 | -5/Factory | Found Prototype Device 8082 | -5/Factory | Identified Exp. Thermal Shield 8139 | -5/Factory | Discovered new exit (range 13) 8156 | -5/Factory | Identified exit to Factory 8219 | -5/Factory | Identified exit to Upper Caves 8219 | -5/Factory | Self-destructed Last Messages --------------- 08208_ S-27 Virus destroyed. 08208_ U-05 Engineer builds a Wall. 08210_ K-01 Serf collects debris. 08211_ Acquired 11 matter. 08211_ Acquired 9 matter. 08211_ Destroyed VTOL Module. 08212_ U-05 Engineer lays Concrete. 08213_ U-05 Engineer builds a Wall. 08213_ K-01 Serf collects debris. 08215_ S-27 Virus destroyed. 08215_ Slammed into K-01 Serf. 08215_ U-05 Engineer lays Concrete. 08216_ U-05 Engineer builds a Wall. 08217_ K-01 Serf collects debris. 08219_ Connecting with Terminal... >>Access(Branch) Found 2 branch access points: (36,148) Upper Caves (70,49) Upper Caves Map updated. Map ----- +----------------------------------------------------+ | ?????????????????????????????????????????????????? | | ?????????????????????????????????????????????????? | | ?????????????????????????????????????????????????? | | ?????????????????????????????????????????????????? | | ?????????????????????????????????????????????????? | | ?????????????????????????????????????????????????? | | ?????????????????????????????????????????????????? | | ?????????????????????????????????????????????????? | | ?????????????????????????????????????????????????? | | ?????????????????????????????????????????????????? | | ?????????????????????????????????????????????????? | | ???????????????????????? ??????????????????????? | | ???????????????????????? #??????????????######## | | ???????????????????????# #??????????????# | | ???????????????????????+ +??????????????# """ ! | | ???????????????????????# #??????????????# "R | | ???????????????????????# #??????????????# """ "" | | ???????????????????????# #??????????????# "" "" | | ???????????????????????# #??????????????# "" | | ???????????????????????# #??????????????# | | ???????????????????????# #??????????????#= = | | ??????????????# ??????## ##?????????????#####+## | | ??????????????# k ???# ###########?????# | | ????????????????""" ##*%= # ####### | | ?????????????????"" /uu T # +% | | ??????????????????????# @ # """"=####### | | ??????????????????????# !! # """" #?????# | | ??????????????????????###[### """" #?????### ## | | ??????????????????????###[### """" #???????# #? | | ??????????????????????# ;%; # #???????# #? | | ??????????????????????# # ; # #???????# #? | | ?????????? ???????????##guk"####+############## #? | | ?????????? ????????????#;g ## | | ?????????? ???????????# g | | ?????????? ???????????# | | ??????????# ??????????# | | ??????????# ??????????## | | ??????????# #???????????# | | ??????????# #???????????# | | ??????????# #???????????#% ########## ###### | | ????????### ###?????????# #? #?# #????? | | ????????#! #?????????# # """ ### ###?## | | ????????# ########### # "R" # # | | ????????# " + " " # ! # | | ????????# ###############+## # + ] + | | ????????# #?????????# " # ! # # | | ????????## ############""" " #"###### # "" | | ########## # #""" = "%! #????### ###?"" | | / #""" "!" #??????# #???"" | | # # " " #????### ###?? | +----------------------------------------------------+ Best States ------------- Heat Dissipation 105 Energy Generation 45 Energy Capacity 1580 Matter Stores 1000 Matter Capacity 1000 Sight Range 22 Robot Scan Range 15 Terrain Scan Density 10 Jamming Range 12 Base Temperature (-) 100 Armor Coverage 225 Resistance: KI 30 Evasion (%) 58 Recoil Reduction 4 Authchip Count 1 Item Schematics ----------------- Med. Armor Plating | -8/Storage | Hacked Robot Schematics ------------------ M-13 Machinist | -9/Materials | Hacked Fabricated ------------ Nothing Repaired ---------- Nothing Studied --------- Hvy. Pick | -6/Factory | Hacked Alien Tech Used ----------------- None Achievements -------------- Batter Up Challenges ------------ None Game ------ Seed GrapheneOvertunedArchive Manual? 0 Play Time 01:49:20 Cumulative 293.9 hours Start 2026.06.25 @ 20:56:12 End 2026.06.26 @ 23:55:05 Sessions 3 Manual Loads 0 Difficulty Rogue Special Mode None Game No. 117 Rogue 112 Adventurer 5 Explorer 0 Win Type - Total 8 Types 4/0/2/1/0/0/0/0/0/1 Lore% 74 Gallery% 71 Achievement% 64 Wizard Run 0 Options --------- Layout 0 ASCII 0 Keyboard 0 Movement Numpad Keybinds 0 Fullscreen 1 Font 18/SmallcapsGlow Map View 76x50 Zoom Use 0% Tactical HUD 1 Map Filters NONE Filters NONE Steam 1 RUN: 2bd68193-e316-4fd9-8a29-f0e27e7b17e1